Workbook

Sheet Feuil1
B1: Accor | C1: Air liquide | D1: A.S.T G | E1: A.B Science
A2: Date | B2: Cours | C2: Cours | D2: Cours | E2: Cours | G2: Rendements
A3: 2015-01-02 | B3: 37.28 | C3: 98.76505 | D3: 2.38 | E3: 12.23 | G3: Accor | H3: Air liquide | I3: A.S.T .G | J3: A.B Science | L3: Matrice de variance covariance
A4: 2015-01-05 | B4: 36.8 | C4: 95.70665 | D4: 2.37 | E4: 12.61 | G4: =(B4/B3)-1 -> -0.01287553648 | H4: =(C4/C3)-1 -> -0.0309664198 | I4: =(D4/D3)-1 -> -0.004201680672 | J4: =(E4/E3)-1 -> 0.03107113655
A5: 2015-01-06 | B5: 36.03 | C5: 94.90796 | D5: 2.38 | E5: 12.52 | G5: =(B5/B4)-1 -> -0.02092391304 | H5: =(C5/C4)-1 -> -0.008345188135 | I5: =(D5/D4)-1 -> 0.004219409283 | J5: =(E5/E4)-1 -> -0.007137192704 | M5: Accor | N5: Air liquide | O5: A.S.T G | P5: A.B Science | R5: % du port | S5: Rdmt moyen
A6: 2015-01-07 | B6: 36.21 | C6: 95.33652 | D6: 2.43 | E6: 12.95 | G6: 0.004995836803 | H6: 0.004515532733 | I6: 0.02100840336 | J6: 0.03434504792 | L6: Accor | M6: =MMULT(TRANSPOSE(G4:J259),G4:J259)/256 -> 0.004259709823 | N6: 0.004100532544 | O6: 0.003928862242 | P6: 0.004066056018 | R6: 0.2 | S6: =AVERAGE(G4:G259) -> -0.003454201447
A7: 2015-01-08 | B7: 36.935 | C7: 99.34946 | D7: 2.45 | E7: 12.76 | G7: 0.02002209334 | H7: 0.04209236922 | I7: 0.008230452675 | J7: -0.01467181467 | L7: Air liquide | M7: 0.004100532544 | N7: 0.004162637429 | O7: 0.003922679196 | P7: 0.004029594899 | R7: 0.2 | S7: =AVERAGE(H4:H259) -> -0.003691831809
A8: 2015-01-09 | B8: 36.905 | C8: 97.11897 | D8: 2.4 | E8: 12.82 | G8: -0.0008122377149 | H8: -0.02245095243 | I8: -0.02040816327 | J8: 0.004702194357 | L8: A.S.T G | M8: 0.003928862242 | N8: 0.003922679196 | O8: 0.00422844339 | P8: 0.003991807655 | R8: 0.2 | S8: =AVERAGE(I4:I259) -> -0.003083473004
A9: 2015-01-12 | B9: 37.315 | C9: 98.81375 | D9: 2.37 | E9: 13.24 | G9: 0.01110960574 | H9: 0.01745055575 | I9: -0.0125 | J9: 0.03276131045 | L9: A.B Science | M9: 0.004066056018 | N9: 0.004029594899 | O9: 0.003991807655 | P9: 0.004602597942 | R9: 0.2 | S9: =AVERAGE(J4:J259) -> -0.00356368566
A10: 2015-01-13 | B10: 37.95 | C10: 99.78777 | D10: 2.35 | E10: 13.16 | G10: 0.01701728527 | H10: 0.009857130207 | I10: -0.008438818565 | J10: -0.006042296073
A11: 2015-01-14 | B11: 37.05 | C11: 98.47285 | D11: 2.44 | E11: 14.75 | G11: -0.02371541502 | H11: -0.0131771659 | I11: 0.03829787234 | J11: 0.1208206687
A12: 2015-01-15 | B12: 38.2 | C12: 100.61568 | D12: 2.44 | E12: 14.3 | G12: 0.0310391363 | H12: 0.02176061727 | I12: 0 | J12: -0.03050847458
A13: 2015-01-16 | B13: 39.085 | C13: 101.44359 | D13: 2.44 | E13: 13.72 | G13: 0.02316753927 | H13: 0.008228439146 | I13: 0 | J13: -0.04055944056 | L13: Valeur investie | M13: 2000
A14: 2015-01-19 | B14: 39.395 | C14: 102.1741 | D14: 2.41 | E14: 13.83 | G14: 0.007931431495 | H14: 0.007201144991 | I14: -0.01229508197 | J14: 0.008017492711 | L14: Rdmt du port | M14: =MMULT(TRANSPOSE(S6:S9),R6:R9) -> -0.002758638384
A15: 2015-01-20 | B15: 39.595 | C15: 103.24552 | D15: 2.4 | E15: 14.12 | G15: 0.005076786394 | H15: 0.01048621911 | I15: -0.004149377593 | J15: 0.02096890817 | L15: variance du port | M15: =SQRT(MMULT(MMULT(TRANSPOSE(R6:R9),M6:P9),R6:R9)) -> 0.05112042789
A16: 2015-01-21 | B16: 40.86 | C16: 103.48902 | D16: 2.37 | E16: 13.8 | G16: 0.03194847834 | H16: 0.002358455844 | I16: -0.0125 | J16: -0.02266288952
A17: 2015-01-22 | B17: 41.915 | C17: 105.29095 | D17: 2.39 | E17: 13.74 | G17: 0.02581987274 | H17: 0.01741179886 | I17: 0.008438818565 | J17: -0.004347826087 | L17: Alpha | M17: =NORMINV(0.01,(1+M14)*M13,M15*M13) -> 1756.634926
A18: 2015-01-23 | B18: 43.695 | C18: 106.99547 | D18: 2.4 | E18: 14.02 | G18: 0.04246689729 | H18: 0.01618866579 | I18: 0.004184100418 | J18: 0.02037845706
A19: 2015-01-26 | B19: 44.44 | C19: 108.9435 | D19: 2.42 | E19: 14.21 | G19: 0.01705000572 | H19: 0.01820665866 | I19: 0.008333333333 | J19: 0.01355206847 | L19: Var (99%) pour 1 jour | M19: =M13-M17 -> 243.3650743
A20: 2015-01-27 | B20: 43.51 | C20: 108.11559 | D20: 2.46 | E20: 14.35 | G20: -0.02092709271 | H20: -0.007599443748 | I20: 0.01652892562 | J20: 0.009852216749 | L20: Var (99%) pour 10 jours | M20: =M19*(SQRT(10)) -> 769.5879376
A21: 2015-01-28 | B21: 43.8 | C21: 107.67728 | D21: 2.57 | E21: 14.71 | G21: 0.006665134452 | H21: -0.004054086927 | I21: 0.04471544715 | J21: 0.02508710801
A22: 2015-01-29 | B22: 44.075 | C22: 109.33311 | D22: 2.56 | E22: 14.71 | G22: 0.006278538813 | H22: 0.01537771014 | I22: -0.003891050584 | J22: 0
A23: 2015-01-30 | B23: 44.325 | C23: 109.08961 | D23: 2.54 | E23: 14.75 | G23: 0.005672149745 | H23: -0.002227138696 | I23: -0.0078125 | J23: 0.002719238613
A24: 2015-02-02 | B24: 43.9 | C24: 110.16102 | D24: 2.56 | E24: 15.12 | G24: -0.009588268472 | H24: 0.00982137529 | I24: 0.007874015748 | J24: 0.02508474576
A25: 2015-02-03 | B25: 44.27 | C25: 110.16102 | D25: 2.51 | E25: 16.07 | G25: 0.008428246014 | H25: 0 | I25: -0.01953125 | J25: 0.06283068783
A26: 2015-02-04 | B26: 44.45 | C26: 110.94023 | D26: 2.57 | E26: 16.29 | G26: 0.004065958889 | H26: 0.007073373141 | I26: 0.02390438247 | J26: 0.01369010579
A27: 2015-02-05 | B27: 44.9 | C27: 110.98893 | D27: 2.58 | E27: 16.69 | G27: 0.01012373453 | H27: 0.000438975113 | I27: 0.003891050584 | J27: 0.02455494168
A28: 2015-02-06 | B28: 45.23 | C28: 109.28441 | D28: 2.58 | E28: 16.55 | G28: 0.007349665924 | H28: -0.01535756764 | I28: 0 | J28: -0.008388256441
A29: 2015-02-09 | B29: 44.88 | C29: 109.33311 | D29: 2.53 | E29: 16.25 | G29: -0.007738226841 | H29: 0.0004456262334 | I29: -0.01937984496 | J29: -0.01812688822
A30: 2015-02-10 | B30: 44.955 | C30: 110.64803 | D30: 2.53 | E30: 17.72 | G30: 0.001671122995 | H30: 0.01202673188 | I30: 0 | J30: 0.09046153846
A31: 2015-02-11 | B31: 44.94 | C31: 110.55063 | D31: 2.54 | E31: 17.05 | G31: -0.0003336670003 | H31: -0.0008802687224 | I31: 0.00395256917 | J31: -0.03781038375
A32: 2015-02-12 | B32: 45.635 | C32: 112.79086 | D32: 2.55 | E32: 17.41 | G32: 0.01546506453 | H32: 0.02026428976 | I32: 0.003937007874 | J32: 0.0211143695
A33: 2015-02-13 | B33: 45.72 | C33: 112.93696 | D33: 2.59 | E33: 17.35 | G33: 0.001862605456 | H33: 0.001295317723 | I33: 0.01568627451 | J33: -0.003446295233
A34: 2015-02-16 | B34: 45.41 | C34: 111.96295 | D34: 2.54 | E34: 17.35 | G34: -0.00678040245 | H34: -0.008624368851 | I34: -0.01930501931 | J34: 0
A35: 2015-02-17 | B35: 45.15 | C35: 111.13504 | D35: 2.57 | E35: 17.45 | G35: -0.005725611099 | H35: -0.007394499698 | I35: 0.01181102362 | J35: 0.005763688761
A36: 2015-02-18 | B36: 46.15 | C36: 111.91425 | D36: 2.59 | E36: 17.45 | G36: 0.02214839424 | H36: 0.007011380029 | I36: 0.007782101167 | J36: 0
A37: 2015-02-19 | B37: 47.17 | C37: 112.49866 | D37: 2.56 | E37: 17.31 | G37: 0.02210184182 | H37: 0.00522194448 | I37: -0.01158301158 | J37: -0.008022922636
A38: 2015-02-20 | B38: 46.905 | C38: 112.83956 | D38: 2.58 | E38: 16.77 | G38: -0.005617977528 | H38: 0.003030258316 | I38: 0.0078125 | J38: -0.03119584055
A39: 2015-02-23 | B39: 47.39 | C39: 112.88826 | D39: 2.6 | E39: 17.11 | G39: 0.01034004904 | H39: 0.0004315862274 | I39: 0.007751937984 | J39: 0.02027429934
A40: 2015-02-24 | B40: 47.495 | C40: 113.52137 | D40: 2.56 | E40: 17.17 | G40: 0.002215657312 | H40: 0.005608289117 | I40: -0.01538461538 | J40: 0.003506721216
A41: 2015-02-25 | B41: 47.52 | C41: 113.71617 | D41: 2.53 | E41: 17.01 | G41: 0.000526371197 | H41: 0.001715976472 | I41: -0.01171875 | J41: -0.009318578917
A42: 2015-02-26 | B42: 47.37 | C42: 114.49539 | D42: 2.53 | E42: 16.97 | G42: -0.003156565657 | H42: 0.006852323641 | I42: 0 | J42: -0.002351557907
A43: 2015-02-27 | B43: 46.825 | C43: 115.03109 | D43: 2.53 | E43: 16.84 | G43: -0.01150517205 | H43: 0.004678790998 | I43: 0 | J43: -0.00766057749
A44: 2015-03-02 | B44: 47.15 | C44: 114.69019 | D44: 2.53 | E44: 16.92 | G44: 0.006940736786 | H44: -0.002963546638 | I44: 0 | J44: 0.004750593824
A45: 2015-03-03 | B45: 46.24 | C45: 113.66747 | D45: 2.57 | E45: 16.94 | G45: -0.01930010604 | H45: -0.008917240437 | I45: 0.01581027668 | J45: 0.001182033097
A46: 2015-03-04 | B46: 46.61 | C46: 114.78759 | D46: 2.55 | E46: 16.84 | G46: 0.008001730104 | H46: 0.009854358507 | I46: -0.007782101167 | J46: -0.005903187721
A47: 2015-03-05 | B47: 48.35 | C47: 115.7616 | D47: 2.53 | E47: 16.97 | G47: 0.03733104484 | H47: 0.008485324938 | I47: -0.007843137255 | J47: 0.007719714964
A48: 2015-03-06 | B48: 49.205 | C48: 115.5181 | D48: 2.52 | E48: 16.78 | G48: 0.01768355739 | H48: -0.002103460906 | I48: -0.00395256917 | J48: -0.01119622864
A49: 2015-03-09 | B49: 48.765 | C49: 115.6642 | D49: 2.52 | E49: 16.2 | G49: -0.008942180673 | H49: 0.001264736868 | I49: 0 | J49: -0.03456495828
A50: 2015-03-10 | B50: 48.155 | C50: 114.49539 | D50: 2.52 | E50: 15.55 | G50: -0.0125089716 | H50: -0.01010520109 | I50: 0 | J50: -0.04012345679
A51: 2015-03-11 | B51: 49.69 | C51: 117.95314 | D51: 2.52 | E51: 15.97 | G51: 0.031876233 | H51: 0.03019990587 | I51: 0 | J51: 0.0270096463
A52: 2015-03-12 | B52: 50.45 | C52: 117.56353 | D52: 2.51 | E52: 15.91 | G52: 0.01529482793 | H52: -0.00330309138 | I52: -0.003968253968 | J52: -0.003757044458
A53: 2015-03-13 | B53: 50.55 | C53: 117.51483 | D53: 2.49 | E53: 16.84 | G53: 0.001982160555 | H53: -0.0004142441112 | I53: -0.00796812749 | J53: 0.05845380264
A54: 2015-03-16 | B54: 51.05 | C54: 119.21935 | D54: 2.52 | E54: 16.71 | G54: 0.009891196835 | H54: 0.01450472251 | I54: 0.01204819277 | J54: -0.007719714964
A55: 2015-03-17 | B55: 50.87 | C55: 119.12195 | D55: 2.56 | E55: 16.48 | G55: -0.003525954946 | H55: -0.0008169814715 | I55: 0.01587301587 | J55: -0.01376421305
A56: 2015-03-18 | B56: 50.15 | C56: 119.17065 | D56: 2.61 | E56: 16.12 | G56: -0.01415372518 | H56: 0.000408824738 | I56: 0.01953125 | J56: -0.02184466019
A57: 2015-03-19 | B57: 49.765 | C57: 118.34274 | D57: 2.61 | E57: 16.16 | G57: -0.007676969093 | H57: -0.00694726428 | I57: 0 | J57: 0.002481389578
A58: 2015-03-20 | B58: 49.985 | C58: 118.63495 | D58: 2.6 | E58: 16.41 | G58: 0.004420777655 | H58: 0.002469183999 | I58: -0.003831417625 | J58: 0.01547029703
A59: 2015-03-23 | B59: 49.61 | C59: 117.66093 | D59: 2.6 | E59: 17.06 | G59: -0.007502250675 | H59: -0.008210228099 | I59: 0 | J59: 0.03960999391
A60: 2015-03-24 | B60: 49.48 | C60: 118.63495 | D60: 2.56 | E60: 17.05 | G60: -0.002620439428 | H60: 0.00827819396 | I60: -0.01538461538 | J60: -0.0005861664713
A61: 2015-03-25 | B61: 47.375 | C61: 117.27133 | D61: 2.54 | E61: 16.63 | G61: -0.04254244139 | H61: -0.0114942519 | I61: -0.0078125 | J61: -0.02463343109
A62: 2015-03-26 | B62: 48.23 | C62: 116.63822 | D62: 2.55 | E62: 15.97 | G62: 0.0180474934 | H62: -0.005398676727 | I62: 0.003937007874 | J62: -0.03968731209
A63: 2015-03-27 | B63: 48.58 | C63: 117.02782 | D63: 2.55 | E63: 15.03 | G63: 0.007256894049 | H63: 0.003340243018 | I63: 0 | J63: -0.05886036318
A64: 2015-03-30 | B64: 48.68 | C64: 118.24534 | D64: 2.55 | E64: 15.31 | G64: 0.002058460272 | H64: 0.01040368008 | I64: 0 | J64: 0.01862940785
A65: 2015-03-31 | B65: 48.58 | C65: 116.68692 | D65: 2.86 | E65: 15.28 | G65: -0.002054231717 | H65: -0.01317954686 | I65: 0.1215686275 | J65: -0.001959503592
A66: 2015-04-01 | B66: 48.745 | C66: 117.07652 | D66: 2.9 | E66: 15.3 | G66: 0.003396459448 | H66: 0.003338848947 | I66: 0.01398601399 | J66: 0.001308900524
A67: 2015-04-02 | B67: 48.585 | C67: 116.68692 | D67: 2.85 | E67: 15.41 | G67: -0.003282387937 | H67: -0.003327738132 | I67: -0.01724137931 | J67: 0.007189542484
A68: 2015-04-07 | B68: 49.295 | C68: 118.14794 | D68: 2.92 | E68: 15.47 | G68: 0.01461356386 | H68: 0.01252085495 | I68: 0.02456140351 | J68: 0.0038935756
A69: 2015-04-08 | B69: 49.035 | C69: 117.27133 | D69: 2.92 | E69: 15.57 | G69: =(B69/B68)-1 -> -0.005274368597 | H69: =(C69/C68)-1 -> -0.007419596144 | I69: =(D69/D68)-1 -> 0 | J69: =(E69/E68)-1 -> 0.006464124111
A70: 2015-04-09 | B70: 50.05 | C70: 119.26806 | D70: 2.92 | E70: 16.3 | G70: 0.02069950036 | H70: 0.01702658271 | I70: 0 | J70: 0.04688503532
A71: 2015-04-10 | B71: 50.19 | C71: 119.41416 | D71: 2.9 | E71: 16.6 | G71: 0.002797202797 | H71: 0.001224971715 | I71: -0.006849315068 | J71: 0.01840490798
A72: 2015-04-13 | B72: 49.765 | C72: 119.07325 | D72: 2.88 | E72: 16.28 | G72: -0.008467822275 | H72: -0.002854854064 | I72: -0.006896551724 | J72: -0.01927710843
A73: 2015-04-14 | B73: 49.445 | C73: 118.73235 | D73: 2.85 | E73: 16.18 | G73: -0.006430222044 | H73: -0.002862943608 | I73: -0.01041666667 | J73: -0.006142506143
A74: 2015-04-15 | B74: 49.305 | C74: 119.36546 | D74: 2.85 | E74: 16.09 | G74: -0.00283142886 | H74: 0.005332245172 | I74: 0 | J74: -0.005562422744
A75: 2015-04-16 | B75: 48.89 | C75: 118.34274 | D75: 2.87 | E75: 16.02 | G75: -0.008416996248 | H75: -0.008567972678 | I75: 0.00701754386 | J75: -0.004350528278
A76: 2015-04-17 | B76: 49.395 | C76: 116.73562 | D76: 2.84 | E76: 15.54 | G76: 0.0103293107 | H76: -0.01358021624 | I76: -0.01045296167 | J76: -0.02996254682
A77: 2015-04-20 | B77: 50.18 | C77: 117.85573 | D77: 2.85 | E77: 15.99 | G77: 0.01589229679 | H77: 0.009595271777 | I77: 0.003521126761 | J77: 0.02895752896
A78: 2015-04-21 | B78: 51.34 | C78: 119.99857 | D78: 2.81 | E78: 15.89 | G78: 0.02311677959 | H78: 0.01818189069 | I78: -0.01403508772 | J78: -0.006253908693
A79: 2015-04-22 | B79: 50.68 | C79: 119.60896 | D79: 2.81 | E79: 15.69 | G79: -0.01285547332 | H79: -0.003246788691 | I79: 0 | J79: -0.01258653241
A80: 2015-04-23 | B80: 50.15 | C80: 117.95314 | D80: 2.81 | E80: 15.56 | G80: -0.01045777427 | H80: -0.01384361172 | I80: 0 | J80: -0.008285532186
A81: 2015-04-24 | B81: 49.965 | C81: 116.19991 | D81: 2.82 | E81: 15.8 | G81: -0.0036889332 | H81: -0.01486378404 | I81: 0.003558718861 | J81: 0.01542416452
A82: 2015-04-27 | B82: 50.76 | C82: 118.19664 | D82: 2.83 | E82: 15.9 | G82: 0.0159111378 | H82: 0.01718357613 | I82: 0.003546099291 | J82: 0.006329113924
A83: 2015-04-28 | B83: 49.33 | C83: 116.19991 | D83: 2.85 | E83: 15.7 | G83: -0.02817178881 | H83: -0.01689328901 | I83: 0.007067137809 | J83: -0.01257861635
A84: 2015-04-29 | B84: 48.51 | C84: 112.98566 | D84: 2.85 | E84: 15.58 | G84: -0.01662274478 | H84: -0.02766138115 | I84: 0 | J84: -0.007643312102
A85: 2015-04-30 | B85: 48.99 | C85: 113.76487 | D85: 2.83 | E85: 15.43 | G85: 0.009894867038 | H85: 0.006896538906 | I85: -0.00701754386 | J85: -0.009627727856
A86: 2015-05-04 | B86: 50.06 | C86: 115.5181 | D86: 2.85 | E86: 15.26 | G86: 0.02184119208 | H86: 0.01541099638 | I86: 0.007067137809 | J86: -0.01101749838
A87: 2015-05-05 | B87: 49.22 | C87: 113.03436 | D87: 2.85 | E87: 14.67 | G87: -0.01677986416 | H87: -0.02150087302 | I87: 0 | J87: -0.03866317169
A88: 2015-05-06 | B88: 48.13 | C88: 113.71617 | D88: 2.84 | E88: 14.92 | G88: -0.02214546932 | H88: 0.006031882695 | I88: -0.00350877193 | J88: 0.01704158146
A89: 2015-05-07 | B89: 48.2 | C89: 113.27787 | D89: 2.84 | E89: 14.63 | G89: 0.001454394349 | H89: -0.003854333117 | I89: 0 | J89: -0.01943699732
A90: 2015-05-08 | B90: 48.775 | C90: 117.46613 | D90: 2.84 | E90: 15.2 | G90: 0.01192946058 | H90: 0.03697332939 | I90: 0 | J90: 0.03896103896
A91: 2015-05-11 | B91: 48.91 | C91: 115.7616 | D91: 2.81 | E91: 15.45 | G91: 0.002767811379 | H91: -0.01451082112 | I91: -0.01056338028 | J91: 0.01644736842
A92: 2015-05-12 | B92: 48.275 | C92: 114.10578 | D92: 2.84 | E92: 15.07 | G92: -0.01298303006 | H92: -0.01430370693 | I92: 0.01067615658 | J92: -0.02459546926
A93: 2015-05-13 | B93: 48.16 | C93: 113.61877 | D93: 2.82 | E93: 14.97 | G93: -0.002382185396 | H93: -0.004268057236 | I93: -0.007042253521 | J93: -0.006635700066
A94: 2015-05-14 | B94: 48.525 | C94: 115.2746 | D94: 2.82 | E94: 15 | G94: 0.007578903654 | H94: 0.01457356034 | I94: 0 | J94: 0.002004008016
A95: 2015-05-15 | B95: 49.23 | C95: 114.25188 | D95: 2.8 | E95: 14.95 | G95: 0.01452859351 | H95: -0.008872032521 | I95: -0.007092198582 | J95: -0.003333333333
A96: 2015-05-18 | B96: 49.955 | C96: 112.98566 | D96: 2.8 | E96: 14.7 | G96: 0.01472679261 | H96: -0.01108270604 | I96: 0 | J96: -0.01672240803
A97: 2015-05-19 | B97: 51.1 | C97: 115.4694 | D97: 2.82 | E97: 15.51 | G97: 0.02292062857 | H97: 0.02198278967 | I97: 0.007142857143 | J97: 0.05510204082
A98: 2015-05-20 | B98: 50.93 | C98: 115.372 | D98: 2.82 | E98: 15.94 | G98: -0.003326810176 | H98: -0.0008435135196 | I98: 0 | J98: 0.027724049
A99: 2015-05-21 | B99: 50.8 | C99: 115.6155 | D99: 2.8 | E99: 15.92 | G99: -0.002552523071 | H99: 0.002110564088 | I99: -0.007092198582 | J99: -0.001254705144
A100: 2015-05-22 | B100: 50.63 | C100: 115.4694 | D100: 2.82 | E100: 16.5 | G100: -0.003346456693 | H100: -0.001263671394 | I100: 0.007142857143 | J100: 0.0364321608
A101: 2015-05-25 | B101: 50.21 | C101: 115.2746 | D101: 2.9 | E101: 16.34 | G101: -0.00829547699 | H101: -0.001687027039 | I101: 0.02836879433 | J101: -0.009696969697
A102: 2015-05-26 | B102: 50.42 | C102: 114.10578 | D102: 2.85 | E102: 16.99 | G102: 0.004182433778 | H102: -0.01013944095 | I102: -0.01724137931 | J102: 0.03977968176
A103: 2015-05-27 | B103: 50.94 | C103: 117.02782 | D103: 2.8 | E103: 16.86 | G103: 0.01031336771 | H103: 0.02560816814 | I103: -0.01754385965 | J103: -0.007651559741
A104: 2015-05-28 | B104: 50.99 | C104: 116.93042 | D104: 2.8 | E104: 17.23 | G104: 0.0009815469179 | H104: -0.0008322807346 | I104: 0 | J104: 0.02194543298
A105: 2015-05-29 | B105: 49.895 | C105: 114.25188 | D105: 2.8 | E105: 17.25 | G105: -0.02147479898 | H105: -0.02290712716 | I105: 0 | J105: 0.001160766106
A106: 2015-06-01 | B106: 50.33 | C106: 114.39798 | D106: 2.83 | E106: 17.26 | G106: 0.008718308448 | H106: 0.001278753575 | I106: 0.01071428571 | J106: 0.0005797101449
A107: 2015-06-02 | B107: 50.22 | C107: 113.03436 | D107: 2.81 | E107: 16.77 | G107: -0.002185575204 | H107: -0.01191996572 | I107: -0.007067137809 | J107: -0.02838933951
A108: 2015-06-03 | B108: 50.3 | C108: 114.15448 | D108: 2.81 | E108: 16.55 | G108: 0.00159299084 | H108: 0.009909553166 | I108: 0 | J108: -0.01311866428
A109: 2015-06-04 | B109: 49.885 | C109: 112.93696 | D109: 2.83 | E109: 16.29 | G109: -0.008250497018 | H109: -0.01066554725 | I109: 0.007117437722 | J109: -0.01570996979
A110: 2015-06-05 | B110: 49.02 | C110: 111.03763 | D110: 2.83 | E110: 15.79 | G110: -0.01733988173 | H110: -0.01681761223 | I110: 0 | J110: -0.0306936771
A111: 2015-06-08 | B111: 48.48 | C111: 109.91752 | D111: 2.83 | E111: 15.72 | G111: -0.01101591187 | H111: -0.01008766127 | I111: 0 | J111: -0.00443318556
A112: 2015-06-09 | B112: 48.305 | C112: 110.25842 | D112: 2.79 | E112: 15.98 | G112: -0.003609735974 | H112: 0.003101416408 | I112: -0.01413427562 | J112: 0.0165394402
A113: 2015-06-10 | B113: 49.105 | C113: 112.64476 | D113: 2.8 | E113: 16.19 | G113: 0.01656143256 | H113: 0.02164315433 | I113: 0.003584229391 | J113: 0.01314142678
A114: 2015-06-11 | B114: 49.35 | C114: 114.15448 | D114: 2.8 | E114: 16.01 | G114: 0.004989308624 | H114: 0.01340248761 | I114: 0 | J114: -0.01111797406
A115: 2015-06-12 | B115: 48.47 | C115: 111.91425 | D115: 2.81 | E115: 15.63 | G115: -0.01783181358 | H115: -0.01962454737 | I115: 0.003571428571 | J115: -0.02373516552
A116: 2015-06-15 | B116: 46.855 | C116: 109.82012 | D116: 2.81 | E116: 14.85 | G116: -0.03331957912 | H116: -0.0187119156 | I116: 0 | J116: -0.04990403071
A117: 2015-06-16 | B117: 47.62 | C117: 110.35582 | D117: 2.79 | E117: 15.03 | G117: 0.01632696617 | H117: 0.004877976822 | I117: -0.007117437722 | J117: 0.01212121212
A118: 2015-06-17 | B118: 46.8 | C118: 110.06362 | D118: 2.5 | E118: 14.55 | G118: -0.01721965561 | H118: -0.00264779873 | I118: -0.1039426523 | J118: -0.03193612774
A119: 2015-06-18 | B119: 46.955 | C119: 110.79413 | D119: 2.5 | E119: 14.16 | G119: 0.003311965812 | H119: 0.006637161307 | I119: 0 | J119: -0.02680412371
A120: 2015-06-19 | B120: 47.175 | C120: 110.30712 | D120: 2.5 | E120: 14.29 | G120: 0.004685337025 | H120: -0.004395629985 | I120: 0 | J120: 0.00918079096
A121: 2015-06-22 | B121: 48.33 | C121: 115.5668 | D121: 2.51 | E121: 14.94 | G121: 0.02448330684 | H121: 0.04768214418 | I121: 0.004 | J121: 0.04548635409
A122: 2015-06-23 | B122: 48.315 | C122: 116.54082 | D122: 2.56 | E122: 15.36 | G122: -0.0003103662322 | H122: 0.008428199102 | I122: 0.01992031873 | J122: 0.0281124498
A123: 2015-06-24 | B123: 47.8 | C123: 116.15121 | D123: 2.56 | E123: 15.05 | G123: -0.01065921556 | H123: -0.003343120462 | I123: 0 | J123: -0.02018229167
A124: 2015-06-25 | B124: 48.27 | C124: 116.44341 | D124: 2.55 | E124: 14.74 | G124: 0.009832635983 | H124: 0.002515686233 | I124: -0.00390625 | J124: -0.02059800664
A125: 2015-06-26 | B125: 47.68 | C125: 116.83302 | D125: 2.55 | E125: 14.51 | G125: -0.01222291278 | H125: 0.003345917128 | I125: 0 | J125: -0.01560379919
A126: 2015-06-29 | B126: 45.77 | C126: 112.69346 | D126: 2.54 | E126: 13.68 | G126: -0.04005872483 | H126: -0.0354314217 | I126: -0.003921568627 | J126: -0.0572019297
A127: 2015-06-30 | B127: 45.27 | C127: 110.50193 | D127: 2.5 | E127: 13.66 | G127: -0.01092418615 | H127: -0.01944682504 | I127: -0.0157480315 | J127: -0.001461988304
A128: 2015-07-01 | B128: 46.46 | C128: 112.74216 | D128: 2.49 | E128: 14.45 | G128: 0.0262867241 | H128: 0.02027322057 | I128: -0.004 | J128: 0.05783308931
A129: 2015-07-02 | B129: 45.435 | C129: 111.32984 | D129: 2.45 | E129: 14.39 | G129: -0.02206198881 | H129: -0.01252699079 | I129: -0.01606425703 | J129: -0.004152249135
A130: 2015-07-03 | B130: 45.18 | C130: 111.13504 | D130: 2.55 | E130: 14.11 | G130: -0.005612413338 | H130: -0.001749755501 | I130: 0.04081632653 | J130: -0.01945795691
A131: 2015-07-06 | B131: 44.34 | C131: 109.13831 | D131: 2.46 | E131: 14.1 | G131: -0.01859229748 | H131: -0.01796670069 | I131: -0.03529411765 | J131: -0.0007087172218
A132: 2015-07-07 | B132: 43.21 | C132: 106.31366 | D132: 2.5 | E132: 13.8 | G132: -0.02548488949 | H132: -0.02588137933 | I132: 0.0162601626 | J132: -0.02127659574
A133: 2015-07-08 | B133: 44.005 | C133: 106.89807 | D133: 2.49 | E133: 13.93 | G133: =(B133/B132)-1 -> 0.01839851886 | H133: =(C133/C132)-1 -> 0.005497035847 | I133: =(D133/D132)-1 -> -0.004 | J133: =(E133/E132)-1 -> 0.009420289855
A134: 2015-07-09 | B134: 44.345 | C134: 110.20972 | D134: 2.46 | E134: 14.33 | G134: 0.007726394728 | H134: 0.0309795116 | I134: -0.01204819277 | J134: 0.02871500359
A135: 2015-07-10 | B135: 46.575 | C135: 113.57007 | D135: 2.58 | E135: 14.58 | G135: 0.05028751832 | H135: 0.03049050483 | I135: 0.0487804878 | J135: 0.01744591766
A136: 2015-07-13 | B136: 47.525 | C136: 115.7129 | D136: 2.59 | E136: 15.13 | G136: 0.0203972088 | H136: 0.01886791124 | I136: 0.003875968992 | J136: 0.03772290809
A137: 2015-07-14 | B137: 47.29 | C137: 115.7616 | D137: 2.58 | E137: 15.33 | G137: -0.004944765913 | H137: 0.0004208692376 | I137: -0.003861003861 | J137: 0.01321877065
A138: 2015-07-15 | B138: 46.93 | C138: 116.54082 | D138: 2.57 | E138: 15.12 | G138: -0.007612603087 | H138: 0.006731247668 | I138: -0.003875968992 | J138: -0.01369863014
A139: 2015-07-16 | B139: 47.635 | C139: 117.41743 | D139: 2.56 | E139: 15.46 | G139: 0.01502237375 | H139: 0.007521913781 | I139: -0.003891050584 | J139: 0.02248677249
A140: 2015-07-17 | B140: 47.76 | C140: 117.61223 | D140: 2.55 | E140: 15.45 | G140: 0.002624120919 | H140: 0.001659038185 | I140: -0.00390625 | J140: -0.0006468305304
A141: 2015-07-20 | B141: 47.515 | C141: 117.85573 | D141: 2.55 | E141: 15.48 | G141: -0.005129815745 | H141: 0.002070362921 | I141: 0 | J141: 0.001941747573
A142: 2015-07-21 | B142: 47.02 | C142: 117.07652 | D142: 2.58 | E142: 15.01 | G142: -0.01041776281 | H142: -0.006611558046 | I142: 0.01176470588 | J142: -0.03036175711
A143: 2015-07-22 | B143: 47.545 | C143: 115.85901 | D143: 2.56 | E143: 15.37 | G143: 0.01116546151 | H143: -0.01039926708 | I143: -0.007751937984 | J143: 0.02398401066
A144: 2015-07-23 | B144: 47.42 | C144: 115.372 | D144: 2.59 | E144: 15.12 | G144: -0.002629088232 | H144: -0.004203471098 | I144: 0.01171875 | J144: -0.01626545218
A145: 2015-07-24 | B145: 46.96 | C145: 114.49539 | D145: 2.56 | E145: 15.48 | G145: -0.009700548292 | H145: -0.007598117394 | I145: -0.01158301158 | J145: 0.02380952381
A146: 2015-07-27 | B146: 45.205 | C146: 111.86555 | D146: 2.63 | E146: 15.63 | G146: -0.03737223169 | H146: -0.02296895971 | I146: 0.02734375 | J146: 0.009689922481
A147: 2015-07-28 | B147: 45.445 | C147: 113.22917 | D147: 2.63 | E147: 15.69 | G147: 0.005309147218 | H147: 0.01218981179 | I147: 0 | J147: 0.003838771593
A148: 2015-07-29 | B148: 45.54 | C148: 112.49866 | D148: 2.61 | E148: 15.6 | G148: 0.002090438992 | H148: -0.006451606066 | I148: -0.007604562738 | J148: -0.005736137667
A149: 2015-07-30 | B149: 45 | C149: 114.00838 | D149: 2.57 | E149: 15.19 | G149: -0.01185770751 | H149: 0.01341989318 | I149: -0.0153256705 | J149: -0.02628205128
A150: 2015-07-31 | B150: 44.675 | C150: 115.4694 | D150: 2.56 | E150: 15.24 | G150: -0.007222222222 | H150: 0.0128150229 | I150: -0.003891050584 | J150: 0.003291639236
A151: 2015-08-03 | B151: 44.36 | C151: 116.63822 | D151: 2.59 | E151: 15.35 | G151: -0.007050923335 | H151: 0.01012233544 | I151: 0.01171875 | J151: 0.007217847769
A152: 2015-08-04 | B152: 44.095 | C152: 117.17392 | D152: 2.45 | E152: 15.07 | G152: -0.005973850316 | H152: 0.00459283415 | I152: -0.05405405405 | J152: -0.01824104235
A153: 2015-08-05 | B153: 46.075 | C153: 118.78105 | D153: 2.46 | E153: 15.04 | G153: 0.04490305023 | H153: 0.01371576542 | I153: 0.004081632653 | J153: -0.00199071002
A154: 2015-08-06 | B154: 45.665 | C154: 118.44014 | D154: 2.42 | E154: 15.27 | G154: -0.008898534997 | H154: -0.002870070605 | I154: -0.0162601626 | J154: 0.01529255319
A155: 2015-08-07 | B155: 45.46 | C155: 117.41743 | D155: 2.4 | E155: 15.05 | G155: -0.004489214935 | H155: -0.008634825997 | I155: -0.00826446281 | J155: -0.01440733464
A156: 2015-08-10 | B156: 45.4 | C156: 118.68365 | D156: 2.38 | E156: 15.12 | G156: -0.001319841619 | H156: 0.01078391854 | I156: -0.008333333333 | J156: 0.004651162791
A157: 2015-08-11 | B157: 44.39 | C157: 115.3233 | D157: 2.39 | E157: 14.88 | G157: -0.02224669604 | H157: -0.02831350401 | I157: 0.004201680672 | J157: -0.01587301587
A158: 2015-08-12 | B158: 43.415 | C158: 111.71944 | D158: 2.39 | E158: 14.44 | G158: -0.0219644064 | H158: -0.03125005962 | I158: 0 | J158: -0.02956989247
A159: 2015-08-13 | B159: 44.54 | C159: 112.83956 | D159: 2.42 | E159: 14.98 | G159: 0.02591270298 | H159: 0.01002618703 | I159: 0.01255230126 | J159: 0.03739612188
A160: 2015-08-14 | B160: 44.28 | C160: 112.54736 | D160: 2.44 | E160: 14.76 | G160: -0.005837449484 | H160: -0.002589517364 | I160: 0.00826446281 | J160: -0.01468624833
A161: 2015-08-17 | B161: 44.86 | C161: 112.40125 | D161: 2.42 | E161: 14.63 | G161: 0.01309846432 | H161: -0.001298209038 | I161: -0.008196721311 | J161: -0.008807588076
A162: 2015-08-18 | B162: 45.53 | C162: 112.06035 | D162: 2.42 | E162: 14.55 | G162: 0.01493535444 | H162: -0.003032884421 | I162: 0 | J162: -0.005468215995
A163: 2015-08-19 | B163: 44.475 | C163: 109.47921 | D163: 2.36 | E163: 14.32 | G163: -0.02317153525 | H163: -0.02303348151 | I163: -0.02479338843 | J163: -0.01580756014
A164: 2015-08-20 | B164: 43.405 | C164: 107.28768 | D164: 2.31 | E164: 13.83 | G164: -0.02405845981 | H164: -0.02001777324 | I164: -0.02118644068 | J164: -0.03421787709
A165: 2015-08-21 | B165: 41.6 | C165: 104.21953 | D165: 2.28 | E165: 13.21 | G165: -0.04158507084 | H165: -0.02859741212 | I165: -0.01298701299 | J165: -0.04483007954
A166: 2015-08-24 | B166: 39.46 | C166: 99.10596 | D166: 2.26 | E166: 12.35 | G166: -0.05144230769 | H166: -0.04906537191 | I166: -0.008771929825 | J166: -0.06510219531
A167: 2015-08-25 | B167: 41.455 | C167: 103.68383 | D167: 2.35 | E167: 13.24 | G167: 0.05055752661 | H167: 0.04619167202 | I167: 0.03982300885 | J167: 0.07206477733
A168: 2015-08-26 | B168: 40.59 | C168: 100.66438 | D168: 2.37 | E168: 12.95 | G168: -0.02086599928 | H168: -0.02912170586 | I168: 0.008510638298 | J168: -0.02190332326
A169: 2015-08-27 | B169: 42.84 | C169: 104.02473 | D169: 2.38 | E169: 13.4 | G169: 0.05543237251 | H169: 0.03338171854 | I169: 0.004219409283 | J169: 0.03474903475
A170: 2015-08-28 | B170: 42.675 | C170: 104.85264 | D170: 2.47 | E170: 13.85 | G170: -0.003851540616 | H170: 0.007958780571 | I170: 0.03781512605 | J170: 0.03358208955
A171: 2015-08-31 | B171: 42.28 | C171: 104.07343 | D171: 2.49 | E171: 14.05 | G171: -0.009256004687 | H171: -0.007431477166 | I171: 0.008097165992 | J171: 0.01444043321
A172: 2015-09-01 | B172: 41.32 | C172: 102.56371 | D172: 2.45 | E172: 13.72 | G172: -0.02270577105 | H172: -0.01450629618 | I172: -0.01606425703 | J172: -0.02348754448
A173: 2015-09-02 | B173: 42.035 | C173: 103.24552 | D173: 2.35 | E173: 13.76 | G173: 0.01730396902 | H173: 0.006647672944 | I173: -0.04081632653 | J173: 0.002915451895
A174: 2015-09-03 | B174: 43.42 | C174: 105.33965 | D174: 2.45 | E174: 13.87 | G174: 0.0329487332 | H174: 0.02028301083 | I174: 0.04255319149 | J174: 0.007994186047
A175: 2015-09-04 | B175: 41.82 | C175: 102.0767 | D175: 2.45 | E175: 13.63 | G175: -0.03684937817 | H175: -0.03097551587 | I175: 0 | J175: -0.0173035328
A176: 2015-09-07 | B176: 41.92 | C176: 103.24552 | D176: 2.39 | E176: 13.65 | G176: 0.002391200383 | H176: 0.01145040935 | I176: -0.02448979592 | J176: 0.001467351431
A177: 2015-09-08 | B177: 42.145 | C177: 103.78123 | D177: 2.43 | E177: 12.72 | G177: 0.005367366412 | H177: 0.005188699713 | I177: 0.01673640167 | J177: -0.06813186813
A178: 2015-09-09 | B178: 43.36 | C178: 105.04745 | D178: 2.45 | E178: 11.93 | G178: 0.02882904259 | H178: 0.01220085752 | I178: 0.008230452675 | J178: -0.06210691824
A179: 2015-09-10 | B179: 42.98 | C179: 103.09942 | D179: 2.45 | E179: 11.73 | G179: -0.008763837638 | H179: -0.01854428642 | I179: 0 | J179: -0.01676445935
A180: 2015-09-11 | B180: 42.105 | C180: 102.1741 | D180: 2.47 | E180: 11.76 | G180: -0.02035830619 | H180: -0.008975026242 | I180: 0.008163265306 | J180: 0.002557544757
A181: 2015-09-14 | B181: 41.98 | C181: 101.8819 | D181: 2.43 | E181: 11.81 | G181: -0.002968768555 | H181: -0.002859824554 | I181: -0.01619433198 | J181: 0.00425170068
A182: 2015-09-15 | B182: 41.74 | C182: 102.61241 | D182: 2.43 | E182: 12 | G182: -0.005717008099 | H182: 0.007170164671 | I182: 0 | J182: 0.01608806097
A183: 2015-09-16 | B183: 42.555 | C183: 103.24552 | D183: 2.47 | E183: 13.55 | G183: 0.01952563488 | H183: 0.006169916485 | I183: 0.01646090535 | J183: 0.1291666667
A184: 2015-09-17 | B184: 43.405 | C184: 102.80721 | D184: 2.46 | E184: 13.88 | G184: 0.0199741511 | H184: -0.004245317376 | I184: -0.004048582996 | J184: 0.02435424354
A185: 2015-09-18 | B185: 42.83 | C185: 100.61568 | D185: 2.52 | E185: 13.8 | G185: -0.01324732174 | H185: -0.02131689013 | I185: 0.0243902439 | J185: -0.005763688761
A186: 2015-09-21 | B186: 43.395 | C186: 102.61241 | D186: 2.46 | E186: 13.33 | G186: 0.01319168807 | H186: 0.01984511758 | I186: -0.02380952381 | J186: -0.03405797101
A187: 2015-09-22 | B187: 41.57 | C187: 99.39816 | D187: 2.45 | E187: 12.71 | G187: -0.04205553635 | H187: -0.03132418389 | I187: -0.00406504065 | J187: -0.04651162791
A188: 2015-09-23 | B188: 41.89 | C188: 99.39816 | D188: 2.55 | E188: 12.7 | G188: 0.007697859033 | H188: 0 | I188: 0.04081632653 | J188: -0.0007867820614
A189: 2015-09-24 | B189: 40.835 | C189: 97.93714 | D189: 2.5 | E189: 12.31 | G189: -0.02518500836 | H189: -0.01469866243 | I189: -0.01960784314 | J189: -0.03070866142
A190: 2015-09-25 | B190: 42.455 | C190: 101.24879 | D190: 2.54 | E190: 12.49 | G190: 0.03967185013 | H190: 0.03381403623 | I190: 0.016 | J190: 0.01462225833
A191: 2015-09-28 | B191: 40.93 | C191: 99.00856 | D191: 2.65 | E191: 12.88 | G191: -0.03592038629 | H191: -0.02212599281 | I191: 0.04330708661 | J191: 0.03122497998
A192: 2015-09-29 | B192: 40.1 | C192: 100.32348 | D192: 2.77 | E192: 12.37 | G192: -0.02027852431 | H192: 0.01328087188 | I192: 0.04528301887 | J192: -0.03959627329
A193: 2015-09-30 | B193: 41.76 | C193: 102.90461 | D193: 2.7 | E193: 12.28 | G193: 0.04139650873 | H193: 0.02572807482 | I193: -0.02527075812 | J193: -0.007275666936
A194: 2015-10-01 | B194: 42.005 | C194: 101.7845 | D194: 2.67 | E194: 11.95 | G194: 0.005866858238 | H194: -0.01088493509 | I194: -0.01111111111 | J194: -0.02687296417
A195: 2015-10-02 | B195: 42.015 | C195: 102.90461 | D195: 2.72 | E195: 12.08 | G195: 0.0002380668968 | H195: 0.01100472076 | I195: 0.01872659176 | J195: 0.01087866109
A196: 2015-10-05 | B196: 44.255 | C196: 105.87536 | D196: 2.75 | E196: 12.22 | G196: 0.05331429251 | H196: 0.02886896904 | I196: 0.01102941176 | J196: 0.01158940397
A197: 2015-10-06 | B197: 44.525 | C197: 106.60587 | D197: 2.75 | E197: 12.09 | G197: =(B197/B196)-1 -> 0.006101005536 | H197: =(C197/C196)-1 -> 0.006899716799 | I197: =(D197/D196)-1 -> 0 | J197: =(E197/E196)-1 -> -0.01063829787
A198: 2015-10-07 | B198: 44.21 | C198: 106.41107 | D198: 2.75 | E198: 12.14 | G198: -0.007074677148 | H198: -0.001827291499 | I198: 0 | J198: 0.004135649297
A199: 2015-10-08 | B199: 44.725 | C199: 106.55717 | D199: 2.73 | E199: 12.06 | G199: 0.0116489482 | H199: 0.001372977454 | I199: -0.007272727273 | J199: -0.006589785832
A200: 2015-10-09 | B200: 44.2 | C200: 107.57988 | D200: 2.69 | E200: 11.96 | G200: -0.01173840134 | H200: 0.009597758649 | I200: -0.01465201465 | J200: -0.008291873964
... 62 more rows
